bitfinex/quotes_ETHUSD_20250314
["timestamp","ask_amount","ask_price","bid_price","bid_amount"]
[1741925533373,5.67571,1899.2,1898.8,5.26627]
[1741925533575,5.2658,1899.1,1898.6,7.2490977]
[1741925533784,0.4103,1899.0,1898.8,5.26624]
[1741925534174,0.4103,1899.0,1898.7,5.26671]
[1741925534909,0.4103,1899.0,1898.6,5.2669]
[1741925534910,10.94244,1899.0,1898.6,5.2669]
[1741925535287,5.26625,1898.9,1898.5,6.398317]
[1741925535483,5.26652,1898.8,1898.5,1.131067]
[1741925535700,0.4103,1898.7,1898.4,5.26737]
[1741925535894,0.4103,1898.7,1898.2,4.965]
[1741925536274,0.4103,1898.7,1898.2,10.233]
[1741925536479,5.67717,1898.7,1898.3,5.26785]
[1741925536707,5.67717,1898.7,1898.2,10.233]
[1741925537007,5.26715,1898.6,1898.2,12.34283]
[1741925537213,5.26715,1898.6,1898.2,17.61083]
[1741925537705,5.26715,1898.6,1898.2,12.34283]
[1741925537906,5.26715,1898.6,1898.2,17.61086]
[1741925538107,5.26715,1898.6,1898.2,12.34283]
[1741925538310,5.26715,1898.6,1898.2,2.10983]
[1741925538612,5.26715,1898.6,1898.2,5.2681]
[1741925539007,5.26735,1898.5,1898.1,6.09358]
[1741925539811,5.26735,1898.5,1898.1,6.14625804]
[1741925540309,5.67765,1898.5,1898.1,6.14625804]
[1741925540980,0.4103,1898.5,1898.1,6.14625804]
[1741925541180,0.4103,1898.5,1898.2,5.8826558]
[1741925541405,4.965,1898.8,1898.2,0.6146258]
[1741925541406,0.4103,1898.7,1898.2,0.6146258]
[1741925541606,0.4103,1898.7,1898.3,5.26761]
[1741925541809,0.4103,1898.7,1898.3,0.8061]
[1741925541998,6.03,1898.9,1898.6,5.26703]
[1741925542186,0.4103,1899.0,1898.7,5.26665]
[1741925543128,5.67624,1899.0,1898.5,6.07323]
[1741925543304,5.67624,1899.0,1898.6,5.267]
[1741925545785,10.94229,1899.0,1898.6,5.267]
[1741925545984,5.67624,1899.0,1898.5,5.26713]
[1741925546317,10.94233,1899.0,1898.5,5.26713]
[1741925546483,0.4103,1899.0,1898.5,5.31979662]
[1741925546683,5.67627,1899.0,1898.6,5.79889966]
[1741925548486,5.67627,1899.0,1898.5,5.26713]
[1741925548683,5.26635,1898.9,1898.5,5.26713]
[1741925552950,10.53278,1898.9,1898.5,5.26713]
[1741925553145,0.4103,1898.8,1898.5,5.26713]
[1741925555251,5.67699,1898.8,1898.4,5.26751]
[1741925555454,5.26677,1898.7,1898.3,5.2678]
[1741925555644,0.4103,1898.6,1898.3,5.2678]
[1741925555955,0.4103,1898.6,1898.3,6.87770335]
[1741925556320,0.4103,1898.6,1898.3,12.14537335]
[1741925556835,0.4103,1898.6,1898.3,6.87757335]
[1741925557238,0.4103,1898.6,1898.3,6.87756335]
[1741925557440,0.4103,1898.6,1898.3,5.26766]
[1741925557814,0.4103,1898.6,1898.3,10.53536]
[1741925558009,0.4103,1898.6,1898.3,5.26766]
[1741925558259,0.4103,1898.6,1898.3,8.26766]
[1741925558557,0.4103,1898.6,1898.4,3.0]
[1741925559857,0.4103,1898.6,1898.4,8.26758]
[1741925560270,0.4103,1898.6,1898.4,5.26758]
[1741925560435,0.4103,1898.6,1898.3,5.26766]
[1741925560637,0.4103,1898.6,1898.3,6.32124]
[1741925563274,5.67746,1898.6,1898.1,6.05968]
[1741925563441,0.4103,1898.4,1898.1,5.26828]
[1741925564971,5.67794,1898.4,1898.0,5.26856]
[1741925566229,0.4103,1898.4,1898.0,10.53709]
[1741925566434,5.67789,1898.4,1898.0,5.26853]
[1741925569256,5.67789,1898.4,1898.0,6.40142]
[1741925570137,5.67789,1898.4,1898.0,11.66991]
[1741925570471,0.4103,1898.4,1898.1,5.2684]
[1741925570670,0.4103,1898.4,1898.1,5.26838]
[1741925571038,5.67791,1898.4,1898.0,6.40152]
[1741925571375,0.4103,1898.4,1898.1,5.908392]
[1741925572470,0.4103,1898.4,1898.1,0.640152]
[1741925572647,0.4103,1898.6,1898.3,5.26787]
[1741925572852,0.4103,1898.6,1898.3,10.53561]
[1741925573072,12.09749338,1898.8,1898.4,5.26753]
[1741925573367,5.26677,1898.7,1898.3,5.26774]
[1741925573754,5.26677,1898.7,1898.3,10.53539]
[1741925574147,11.70679,1898.8,1898.4,5.26758]
[1741925574443,13.40409,1898.8,1898.4,5.26758]
[1741925574783,7.37409,1898.8,1898.4,5.26758]
[1741925574980,7.3742,1898.8,1898.4,5.26758]
[1741925575181,0.4103,1898.8,1898.5,5.26727]
[1741925575543,0.4103,1898.8,1898.4,5.26758]
[1741925576081,5.67694,1898.8,1898.3,5.26786]
[1741925576248,5.26676,1898.7,1898.3,5.26786]
[1741925576449,10.94367,1898.8,1898.3,5.26763]
[1741925576777,0.4103,1898.6,1898.2,10.58883019]
[1741925576986,0.4103,1898.6,1898.2,10.53616]
[1741925577693,5.67736,1898.6,1898.2,5.26803]
[1741925577886,5.67736,1898.6,1898.2,10.58862547]
[1741925578043,0.4103,1898.6,1898.3,5.26759]
[1741925580182,0.4103,1898.6,1898.3,5.794349]
[1741925580689,0.4103,1898.6,1898.3,11.062079]
[1741925580864,0.4103,1898.6,1898.3,5.794349]
[1741925581482,0.4103,1898.6,1898.3,0.526759]
[1741925581681,5.67739,1898.6,1898.2,6.04564]
[1741925582787,5.67739,1898.6,1898.2,5.26814]
[1741925583086,5.67739,1898.6,1898.2,10.53609]
[1741925583587,0.4103,1898.6,1898.2,10.53609]
[1741925584087,0.4103,1898.6,1898.3,5.26786]
[1741925584784,5.67737,1898.6,1898.2,10.53592]
[1741925584993,5.67737,1898.6,1898.2,6.99752945]
[1741925585295,5.67737,1898.6,1898.2,12.26555945]
[1741925586088,5.67737,1898.6,1898.2,6.99752945]
[1741925586333,5.67737,1898.6,1898.2,12.26552945]
[1741925586790,0.4103,1898.6,1898.3,5.26787]
[1741925587984,0.4103,1898.6,1898.2,6.99752945]
[1741925588161,5.67746,1898.6,1898.2,12.26553945]
[1741925588363,5.67746,1898.6,1898.2,6.99752945]
[1741925589091,5.26735,1898.5,1898.2,1.72957945]
[1741925589454,0.4103,1898.4,1898.2,1.72957945]
[1741925589690,0.4103,1898.4,1898.1,15.5017]
[1741925590299,5.67789,1898.4,1898.1,4.965]
[1741925590499,0.4103,1898.4,1898.1,5.26842]
[1741925590870,5.67791,1898.4,1898.0,5.26862]
[1741925592250,5.67791,1898.4,1898.0,6.50186545]
[1741925592691,5.67791,1898.4,1898.0,1.23324545]
[1741925592891,0.4103,1898.1,1897.7,1.79487452]
[1741925593098,0.4103,1898.1,1897.8,5.26904]
[1741925593401,5.67931,1897.9,1897.5,5.27002]
[1741925593557,5.67931,1897.9,1897.5,7.67184652]
[1741925593755,5.67931,1897.9,1897.6,1.79487452]
[1741925593958,2.20517452,1897.9,1897.3,5.27062]
[1741925594176,5.67987,1897.7,1897.3,5.27062]
[1741925594357,0.4103,1897.7,1897.4,5.27035]
[1741925594883,0.4103,1897.7,1897.4,7.06522452]
[1741925595189,0.4103,1897.7,1897.5,5.27007]
[1741925595396,0.4103,1897.7,1897.4,8.29881897]
[1741925595760,0.4103,1897.7,1897.4,13.56897897]
[1741925595960,0.4103,1897.7,1897.5,5.26996]
[1741925596160,0.4103,1898.0,1897.6,7.06468452]
[1741925596492,1.505063,1898.0,1897.7,5.26951]
[1741925596657,0.4103,1898.0,1897.7,5.26951]
[1741925597055,13.62787321,1898.2,1897.8,5.32194328]
[1741925597056,0.4103,1898.2,1897.8,5.32194328]
[1741925597286,0.4103,1898.2,1897.9,0.7821]
[1741925597617,0.4103,1898.2,1897.9,5.26897]
[1741925598465,0.4103,1898.2,1897.9,5.26881]
[1741925598670,0.4103,1898.2,1898.0,5.26864]
[1741925598989,0.4103,1898.2,1898.0,10.53719]
[1741925599194,0.4103,1898.4,1898.1,5.26842]
[1741925600299,5.67801,1898.4,1898.0,5.26855]
[1741925600507,5.67801,1898.4,1897.9,5.26895]
[1741925601158,5.67801,1898.4,1897.9,10.53767]
[1741925601398,5.67801,1898.4,1897.9,6.322487]
[1741925601698,5.67801,1898.4,1897.9,5.26872]
[1741925603633,10.94584,1898.4,1897.9,5.26872]
[1741925604236,5.26799,1898.3,1897.9,5.26872]
[1741925605140,5.67891,1898.1,1897.6,5.26963]
[1741925605496,0.4103,1898.0,1897.6,5.26963]
[1741925605832,5.67902,1898.0,1897.6,5.26963]
[1741925606034,6.363483,1898.0,1897.5,5.27008]
[1741925606221,0.4103,1897.9,1897.5,5.27008]
[1741925607437,5.67932,1897.9,1897.5,5.27008]
[1741925607647,0.4103,1897.9,1897.5,5.26994]
[1741925607935,0.4103,1897.9,1897.5,5.2699]
[1741925608844,0.4103,1897.9,1897.6,5.26966]
[1741925609845,0.4103,1897.9,1897.6,10.53936]
[1741925610616,5.67888,1898.1,1897.7,5.26947]
[1741925611634,0.4103,1898.1,1897.7,5.26934]
[1741925611931,0.4103,1898.1,1897.8,5.26919]
[1741925612627,0.4103,1898.3,1897.9,5.26896]
[1741925612833,5.67829,1898.3,1897.8,6.323083]
[1741925613139,5.26825,1898.2,1897.8,6.323083]
[1741925613711,0.4103,1898.1,1897.8,6.323083]
[1741925613902,5.67873,1898.1,1897.8,1.053853]
[1741925614108,5.67873,1898.1,1897.7,10.53877]
[1741925614308,5.67873,1898.1,1897.7,5.26938]
[1741925614607,5.67873,1898.1,1897.7,10.5388]
[1741925615210,5.67873,1898.1,1897.7,5.26938]
[1741925615831,0.4103,1898.1,1897.8,5.26923]
[1741925616031,5.67876,1898.1,1897.7,5.26938]
[1741925616341,5.67876,1898.1,1897.7,6.368838]
[1741925616502,5.67876,1898.1,1897.6,5.2698]
[1741925616710,5.26878,1898.0,1897.6,5.2698]
[1741925617347,0.4103,1897.9,1897.6,5.2698]
[1741925617946,0.4103,1897.9,1897.6,10.5395]
[1741925618114,0.4103,1897.9,1897.6,5.2697]
[1741925618414,0.4103,1897.9,1897.6,6.37690497]
[1741925618952,5.67932,1897.9,1897.6,1.10720497]
[1741925619125,5.67932,1897.9,1897.5,5.80234965]
[1741925619322,5.26927,1897.8,1897.4,15.31021]
[1741925619511,10.94855,1897.9,1897.5,5.27006]
[1741925619843,5.67932,1897.9,1897.5,5.27006]
[1741925620754,5.67932,1897.9,1897.5,5.26986]
[1741925620925,5.67932,1897.9,1897.5,6.800846]
[1741925621126,5.67932,1897.9,1897.5,12.070816]
[1741925621322,5.67932,1897.9,1897.5,6.800846]
[1741925621763,0.4103,1897.9,1897.7,5.26944]
[1741925621964,0.4103,1897.9,1897.6,5.26975]
[1741925622173,5.26862,1898.1,1897.6,5.26975]
[1741925622174,5.67892,1898.1,1897.7,5.796475]
[1741925624001,0.4103,1898.1,1897.8,5.26923]
[1741925624451,0.4103,1898.1,1897.7,5.796475]
[1741925624452,5.67874,1898.1,1897.7,5.796475]
[1741925625022,5.67874,1898.1,1897.9,1.04848974]
[1741925626665,5.67874,1898.1,1897.7,5.26941]
[1741925626830,5.67874,1898.1,1897.7,6.323331]
[1741925627350,10.94743,1898.1,1897.7,1.053921]
[1741925627555,10.94743,1898.1,1897.6,5.2698]
[1741925627980,5.26875,1898.0,1897.6,5.2698]
[1741925628466,5.67874,1898.1,1897.6,10.5394]
[1741925628777,0.4103,1898.1,1897.7,10.53889]
[1741925628961,0.4103,1898.1,1897.7,5.26937]
[1741925629175,0.4103,1898.1,1897.7,5.796307]
[1741925629483,5.67876,1898.1,1897.7,5.796307]
[1741925631592,5.67876,1898.1,1897.9,5.26893]
[1741925631593,0.4103,1898.1,1897.9,5.26893]
[1741925631906,0.4103,1898.1,1897.8,6.10031]
[1741925632254,0.4103,1898.2,1897.8,6.10031]
[1741925632455,0.4103,1898.2,1897.8,7.34267434]
[1741925633294,0.4103,1898.4,1898.1,5.26821]
[1741925633999,0.4103,1898.5,1898.1,5.26817]
[1741925634193,0.4103,1898.5,1898.2,5.2681]
[1741925634381,23.10606,1898.7,1898.3,5.26768]
[1741925635191,23.10611,1898.7,1898.3,5.26768]
[1741925635405,5.26705,1898.6,1898.2,5.26811]
[1741925635791,5.26705,1898.6,1898.1,5.26826]
[1741925635980,0.4103,1898.5,1898.1,5.26826]
[1741925636564,5.67765,1898.5,1898.1,5.26826]
[1741925637088,0.4103,1898.5,1898.1,6.45776345]
[1741925637290,0.4103,1898.5,1898.2,5.26813]
[1741925638397,5.67761,1898.5,1898.1,6.405086]
[1741925639201,5.67761,1898.5,1898.0,11.36855]
[1741925639369,5.67761,1898.5,1898.0,6.09985]
[1741925639566,5.67761,1898.5,1898.0,6.15253079]
[1741925639767,5.67761,1898.5,1898.0,11.42106079]
[1741925639966,5.67761,1898.5,1898.0,11.36838]
[1741925640166,6.772075,1898.5,1898.0,11.36838]
[1741925640666,0.4103,1898.5,1898.1,5.26827]
[1741925640895,0.4103,1898.5,1898.1,5.3209483]
[1741925641107,5.67765,1898.5,1898.1,5.3209483]
[1741925641993,0.4103,1898.5,1898.1,10.5891883]
[1741925642166,0.4103,1898.5,1898.1,10.53654]
[1741925642368,0.4103,1898.5,1898.2,5.26814]
[1741925642972,0.4103,1898.5,1898.1,11.673334]
[1741925643187,0.4103,1898.5,1898.1,11.673254]
[1741925643476,0.4103,1898.5,1898.1,6.405014]
[1741925643701,0.4103,1898.5,1898.2,5.26814]
[1741925644002,0.4103,1898.5,1898.1,11.673324]
[1741925644203,0.4103,1898.5,1898.2,5.26812]
[1741925645398,0.4103,1898.5,1898.2,10.5361]
[1741925645605,0.4103,1898.5,1898.2,11.7033884]
[1741925646103,0.4103,1898.5,1898.2,6.4352684]
[1741925646552,5.67737,1898.6,1898.2,6.4352684]
[1741925647417,5.67737,1898.6,1898.2,5.26798]
[1741925649013,0.4103,1898.6,1898.3,5.26785]
[1741925650838,5.67735,1898.6,1898.2,6.04008]
[1741925651208,0.4103,1898.6,1898.2,6.09273543]
[1741925651403,0.4103,1898.6,1898.3,5.26785]
[1741925657604,5.67734,1898.6,1898.2,6.04012]
[1741925657794,3.4103,1898.9,1898.2,1.95562835]
[1741925658000,8.67663,1898.9,1898.5,5.26717]
[1741925659063,0.4103,1898.9,1898.5,5.26711]
[1741925659213,0.4103,1899.2,1898.7,0.802]
[1741925659400,5.67574,1899.2,1898.7,0.802]
[1741925659845,5.67574,1899.2,1898.8,5.26629]
[1741925660842,5.67574,1899.2,1898.8,5.26628]
[1741925661138,5.67574,1899.2,1898.8,0.606828]
[1741925661447,5.67574,1899.2,1898.7,6.06873]
[1741925661604,5.67574,1899.2,1898.7,11.33529]
[1741925662642,5.67574,1899.2,1898.8,5.26647]
[1741925664804,5.26572,1899.1,1898.7,11.33517]
[1741925665205,5.26572,1899.1,1898.7,6.06856]
[1741925665435,5.26572,1899.1,1898.7,7.698319]
[1741925666872,5.67574,1899.2,1898.8,5.26647]
[1741925667174,10.94134,1899.2,1898.8,5.26647]
[1741925669272,10.94134,1899.2,1898.7,7.698319]
[1741925669978,10.94134,1899.2,1898.7,12.964869]
[1741925672276,5.67574,1899.2,1898.8,5.26648]
[1741925674373,5.67574,1899.2,1898.7,7.698309]
[1741925674578,5.26565,1899.1,1898.7,7.698309]
[1741925674739,5.26565,1899.1,1898.7,12.964859]
[1741925676276,1.79434319,1899.0,1898.7,12.964859]
[1741925676613,1.79434319,1899.0,1898.8,6.5629559]
[1741925676780,1.79434319,1899.1,1898.8,6.5629559]
[1741925677082,1.79434319,1899.0,1898.8,5.26647]
[1741925677890,1.79434319,1899.0,1898.7,7.698309]
[1741925678563,1.79434319,1899.0,1898.7,12.964859]
[1741925680880,1.79434319,1898.8,1898.6,0.7598]
[1741925681193,2.20464319,1898.9,1898.5,5.26712]
[1741925681392,1.79434319,1898.8,1898.6,5.26699]
[1741925681565,1.79434319,1898.8,1898.6,10.53386]
[1741925681764,1.79434319,1898.8,1898.6,5.26687]
[1741925682070,1.79434319,1898.8,1898.7,5.26676]
[1741925682273,1.79434319,1898.8,1898.6,6.320247]
[1741925682459,1.79434319,1898.9,1898.7,5.26676]
[1741925684684,1.79434319,1899.0,1898.8,5.26648]
[1741925685075,1.79434319,1899.0,1898.8,5.2663]
[1741925686154,1.79434319,1899.2,1898.8,0.60518]
[1741925686355,1.79434319,1899.2,1898.9,5.26597]
[1741925686985,1.79434319,1899.1,1898.9,5.26597]
[1741925688282,1.79434319,1899.2,1898.9,5.26597]
[1741925688751,1.79434319,1899.2,1899.0,6.06949]
[1741925689178,1.79434319,1899.2,1898.9,5.26597]
[1741925693019,1.79434319,1899.2,1899.0,5.26585]
[1741925693523,1.79434319,1899.2,1898.9,5.26597]
[1741925693683,1.79434319,1899.2,1898.9,5.872937]
[1741925695338,1.79434319,1899.2,1899.0,5.2659]
[1741925696025,1.79434319,1899.2,1898.9,5.873127]
[1741925696424,1.79434319,1899.2,1898.9,11.139137]
[1741925696929,1.79434319,1899.2,1898.9,5.872977]
[1741925697135,1.79434319,1899.2,1898.9,11.139047]
[1741925697431,1.79434319,1899.2,1899.0,5.2659]
[1741925699368,1.79434319,1899.2,1898.9,5.872977]
[1741925699568,1.79434319,1899.2,1898.9,5.26601]
[1741925700026,1.79434319,1899.2,1899.0,5.26591]
[1741925700836,1.79434319,1899.2,1898.9,5.26599]
[1741925701528,1.79434319,1899.2,1899.0,5.26588]
[1741925701723,1.79434319,1899.2,1898.9,10.53207]
[1741925702048,1.79434319,1899.2,1898.9,5.26599]
[1741925702219,1.79434319,1899.2,1898.9,10.53208]
[1741925702764,1.79434319,1899.2,1898.9,5.26599]
[1741925703271,1.79434319,1899.2,1898.9,10.53203]
[1741925703436,1.79434319,1899.2,1898.9,5.26599]
[1741925705564,1.79434319,1899.2,1899.0,5.26582]
[1741925706067,0.4103,1899.4,1899.0,1.053181]
[1741925706236,7.47376319,1899.7,1899.2,5.26517]
[1741925706439,2.20464319,1899.4,1899.1,6.0702]
[1741925706635,2.20464319,1899.4,1899.1,11.38828024]
[1741925706847,2.20464319,1899.4,1899.1,6.07003]
[1741925707036,2.20464319,1899.4,1899.1,7.25627524]
[1741925707580,2.20464319,1899.4,1899.2,5.26535]
[1741925708133,2.20464319,1899.4,1899.1,7.203785]
[1741925708352,2.20464319,1899.4,1899.1,7.25643524]
[1741925709192,2.20464319,1899.4,1899.1,7.25631524]
[1741925709649,1.79434319,1899.3,1899.1,6.45171524]
[1741925711741,1.79434319,1899.4,1899.2,6.68354152]
[1741925712940,1.79434319,1899.4,1899.2,5.91054152]
[1741925713773,1.79434319,1899.3,1899.2,0.64517152]
[1741925714293,1.79434319,1899.3,1899.0,10.53168]
[1741925714795,1.79434319,1899.3,1899.1,5.26564]
[1741925715095,2.20464319,1899.4,1899.2,5.26537]
[1741925715796,1.79434319,1899.4,1899.2,5.26537]
[1741925716291,1.79434319,1899.4,1899.2,5.26536]
[1741925718900,1.79434319,1899.4,1899.1,5.26551]
[1741925719862,1.79434319,1899.2,1898.7,10.8419]
[1741925720066,1.79434319,1898.9,1898.7,6.06854]
[1741925720284,1.79434319,1898.9,1898.7,5.26664]
[1741925720462,1.79434319,1898.9,1898.6,5.26699]
[1741925720666,1.79434319,1898.9,1898.6,6.891204]
[1741925721204,1.79434319,1898.7,1898.5,4.958]
[1741925721507,1.79434319,1898.7,1898.4,5.26757]
[1741925721820,1.79434319,1898.6,1898.4,5.26757]
[1741925722025,1.79434319,1898.7,1898.4,5.26757]
[1741925722615,1.79434319,1898.5,1898.2,5.26814]
[1741925722920,2.20464319,1898.6,1898.2,6.880454]
[1741925723418,2.20464319,1898.6,1898.2,12.148464]
[1741925723918,0.4103,1898.6,1898.2,12.148264]
[1741925724107,0.4103,1898.6,1898.2,6.880254]
[1741925724489,0.4103,1898.6,1898.4,5.2674]
[1741925724890,7.47112319,1898.8,1898.3,10.53531]
[1741925725198,0.4103,1898.8,1898.3,1.2147624]
[1741925725393,0.4103,1898.8,1898.5,5.26718]
[1741925725600,0.4103,1898.8,1898.5,10.53438]
[1741925725828,1.79434319,1899.0,1898.6,5.26695]
[1741925726031,10.06028319,1899.0,1898.6,5.24784047]
[1741925726204,5.67612,1899.1,1898.6,5.24784047]
[1741925726412,5.67612,1899.1,1898.5,5.26731]
[1741925726413,5.833672,1899.0,1898.5,5.26716]
[1741925726734,5.833672,1899.0,1898.6,5.267]
[1741925726930,0.567612,1899.0,1898.6,5.267]
[1741925727736,5.833602,1899.0,1898.6,5.267]
[1741925730614,11.099792,1899.0,1898.5,5.26716]
[1741925731135,11.099672,1899.0,1898.5,10.53428]
[1741925731336,11.099662,1899.0,1898.6,5.26703]
[1741925731742,11.099662,1899.0,1898.5,5.26712]
[1741925731941,0.4103,1898.7,1898.4,5.26758]
[1741925732318,1.5202662,1898.9,1898.5,5.31977771]
[1741925732519,6.7865262,1898.9,1898.5,5.31977771]
[1741925733035,6.7864962,1898.9,1898.5,10.58692771]
[1741925733236,6.7865362,1898.9,1898.5,5.26707]
[1741925734261,1.5202662,1898.9,1898.6,5.26702]
[1741925734757,6.7864762,1898.9,1898.5,5.26707]
[1741925735865,1.5202662,1898.9,1898.5,5.31973765]
[1741925736155,1.5202662,1898.9,1898.5,5.26707]
[1741925736356,6.7864962,1898.9,1898.5,5.26707]
[1741925736856,6.7864962,1898.9,1898.5,5.26729]
[1741925737259,1.5202662,1898.9,1898.6,5.26702]
[1741925737558,6.7864862,1898.9,1898.5,5.2672]
[1741925738461,5.26649,1898.8,1898.4,6.07789]
[1741925738631,6.7864862,1898.9,1898.5,5.26709]
[1741925738835,1.5202662,1898.9,1898.6,5.26701]
[1741925739031,6.7865762,1898.9,1898.5,5.26709]
[1741925740566,5.67661,1898.9,1898.5,5.26709]
[1741925741074,5.67652,1898.9,1898.5,5.26709]
[1741925741872,5.67652,1898.9,1898.5,5.26731]
[1741925743079,5.67652,1898.9,1898.4,6.07773]
[1741925743381,5.67719,1898.7,1898.2,6.09967]
[1741925743536,5.67719,1898.7,1898.3,5.26783]
[1741925743978,5.26704,1898.6,1898.2,5.26797]
[1741925744302,10.94416,1898.7,1898.2,5.26797]
[1741925744443,5.26704,1898.6,1898.2,5.26797]
[1741925744643,10.94412,1898.7,1898.3,5.26784]
[1741925744872,12.038532,1898.7,1898.3,5.26784]
[1741925745042,12.038542,1898.7,1898.3,5.26784]
[1741925746073,6.771602,1898.7,1898.3,5.26784]
[1741925746242,6.771602,1898.7,1898.3,7.06255767]
[1741925746443,6.771592,1898.7,1898.3,7.06255767]
[1741925747143,6.771592,1898.7,1898.4,1.79471767]
[1741925748177,1.504712,1898.7,1898.4,1.79471767]
[1741925748394,6.771522,1898.7,1898.4,1.79471767]
[1741925749893,0.4103,1898.7,1898.5,7.06184767]
[1741925750053,6.03,1899.0,1898.6,1.79471767]
[1741925750054,3.4103,1898.9,1898.6,1.79471767]
[1741925750253,0.4103,1898.9,1898.6,1.79471767]
[1741925750457,0.4103,1898.9,1898.6,5.26702]
[1741925751294,0.4103,1898.9,1898.6,7.06173767]
[1741925753281,0.4103,1898.9,1898.6,1.79471767]
[1741925753487,6.847172,1898.9,1898.5,7.06183767]
[1741925753792,5.67653,1898.9,1898.5,7.06183767]
[1741925755361,5.67653,1898.9,1898.5,5.26712]
[1741925758295,5.67653,1898.9,1898.4,12.32972767]
[1741925758496,5.2666,1898.8,1898.4,7.06214767]
[1741925758693,5.2666,1898.8,1898.4,12.32961767]
[1741925759331,5.67653,1898.9,1898.5,5.26726]
[1741925759599,6.244183,1898.9,1898.5,5.26726]
[1741925760400,6.244183,1898.9,1898.5,10.53439]
[1741925760688,6.244183,1898.9,1898.5,5.26713]
[1741925762695,11.510633,1898.9,1898.5,5.26713]
[1741925762899,11.510633,1898.9,1898.4,5.26759]
[1741925762900,0.4103,1898.6,1898.3,5.26773]
[1741925763074,0.4103,1898.6,1898.4,7.06228767]
[1741925763589,0.4103,1898.6,1898.3,7.06240767]
[1741925766099,0.4103,1898.6,1898.3,5.26769]
[1741925766599,5.67706,1898.7,1898.3,5.26769]
[1741925767903,6.41246876,1898.7,1898.3,5.26769]
[1741925768602,7.06188767,1898.6,1898.1,5.26841]
[1741925768766,5.67773,1898.5,1898.1,5.26841]
[1741925769399,10.94516,1898.5,1898.1,5.26841]
[1741925769703,5.67773,1898.5,1898.1,5.26841]
[1741925769872,0.567653,1898.4,1898.1,5.26841]
[1741925770402,0.567653,1898.4,1898.0,5.26864]
[1741925771290,5.835263,1898.4,1898.0,10.5371]
[1741925772212,5.835263,1898.4,1897.9,6.03452]
[1741925772508,0.4103,1898.3,1897.9,5.26892]
[1741925772708,0.9938263,1898.3,1897.9,5.26892]
[1741925774612,6.2617663,1898.3,1897.8,5.26904]
[1741925775194,8.05648397,1898.3,1897.8,5.26904]
[1741925775691,0.4103,1898.1,1897.7,6.03513]
[1741925775872,0.4103,1898.1,1897.7,7.165598]
[1741925776077,0.4103,1898.1,1897.8,5.2692]
[1741925776611,0.4103,1898.1,1897.8,10.5383]
[1741925776984,0.4103,1898.1,1897.8,5.2691]
[1741925778437,0.4103,1898.4,1897.9,5.26898]
[1741925778739,0.4103,1898.4,1898.0,5.26855]
[1741925778931,0.4103,1898.4,1898.1,5.26836]
[1741925779232,0.4103,1898.6,1898.3,10.53554]
[1741925779533,0.4103,1898.6,1898.3,5.26767]
[1741925779833,0.4103,1898.6,1898.2,0.7545]
[1741925780034,6.4403,1898.8,1898.4,1.79471767]
[1741925780238,0.4103,1898.8,1898.5,5.26714]
[1741925780437,0.4103,1898.9,1898.5,10.53432]
[1741925780734,0.4103,1898.9,1898.6,5.26699]
[1741925781240,0.4103,1899.1,1898.6,0.791]
[1741925781403,6.03,1899.2,1898.8,5.26627]
[1741925781604,0.603,1899.1,1898.8,5.26627]
[1741925781889,19.63001767,1899.3,1898.9,5.26619]
[1741925782138,24.89521767,1899.3,1898.8,5.26626]
[1741925782341,3.0,1899.2,1898.8,5.26626]
[1741925782712,3.0,1899.2,1898.8,10.53262]
[1741925783209,23.1005,1899.3,1898.9,5.2662]
[1741925783210,0.4103,1899.3,1898.9,5.2662]
[1741925783542,0.977828,1899.3,1898.9,5.2662]
[1741925784399,6.242918,1899.3,1898.9,5.2662]
[1741925785336,6.242918,1899.3,1898.8,5.26632]
[1741925785536,6.242918,1899.3,1898.8,5.26626]
[1741925785912,6.242918,1899.3,1898.8,10.53259]
[1741925786444,0.6242918,1899.2,1898.8,5.26626]
[1741925791353,0.6242918,1899.2,1898.8,10.53263]
[1741925791525,6.242918,1899.3,1898.8,5.26626]
[1741925792549,6.242918,1899.3,1898.8,10.53253]
[1741925793420,6.242918,1899.3,1898.8,10.5326]
[1741925794447,6.242918,1899.3,1898.9,5.26616]
[1741925794650,0.4103,1899.3,1899.0,5.26576]
[1741925798857,0.4103,1899.3,1898.8,5.26627]
[1741925799016,5.67588,1899.2,1898.7,5.26654]
[1741925799220,5.67588,1899.2,1898.7,5.876294]
[1741925799721,5.67588,1899.2,1898.8,5.26636]
[1741925803638,0.4103,1899.2,1898.8,5.26636]
[1741925804257,2.20442605,1899.2,1898.8,5.26636]
[1741925804461,2.20442605,1899.2,1898.8,5.26627]
[1741925804770,0.4103,1899.2,1898.9,5.26609]
[1741925805367,2.20442605,1899.2,1898.9,5.26609]
[1741925806972,0.4103,1899.4,1899.1,5.26565]
[1741925807271,0.4103,1899.4,1898.9,0.05265967]
[1741925807272,2.20442605,1899.3,1898.9,0.05265967]
[1741925807473,1.79412605,1899.2,1898.8,5.26631]
[1741925807856,7.05951605,1899.2,1898.8,5.26631]
[1741925812384,0.4103,1899.1,1898.8,5.26631]
[1741925813393,7.06007605,1899.0,1898.6,8.26698]
[1741925813551,0.4103,1898.9,1898.6,8.26698]
[1741925813879,0.4103,1898.9,1898.6,8.31964466]
[1741925814079,0.4103,1898.9,1898.7,5.26675]
[1741925814283,0.4103,1899.0,1898.7,5.26675]
[1741925815180,0.4103,1899.2,1898.8,5.26636]
[1741925815389,5.67541,1899.3,1898.9,0.57929563]
[1741925815589,5.67541,1899.3,1898.9,5.26599]
[1741925815795,7.46953605,1899.3,1898.9,10.53208]
[1741925816000,7.46953605,1899.3,1898.9,5.26599]
[1741925817401,7.46953605,1899.3,1898.8,6.05068]
[1741925817610,12.41460698,1899.6,1898.7,5.26664]